bitfinex-derivatives/quotes_BTCF0:USTF0_20260131
["timestamp","ask_amount","ask_price","bid_price","bid_amount"]
[1769848008748,0.15421508,83212.0,83184.0,0.29239904]
[1769848009046,0.15421508,83211.0,83184.0,0.29239904]
[1769848009247,0.15421508,83210.0,83184.0,0.29239904]
[1769848009449,0.120357,83213.0,83184.0,0.29239904]
[1769848009746,0.00012714,83215.0,83194.0,0.29239904]
[1769848010049,0.00012714,83215.0,83196.0,0.29239904]
[1769848010243,0.00012714,83215.0,83198.0,0.29239904]
[1769848013645,0.10832,83224.0,83203.0,0.27620803]
[1769848022047,0.2850589,83221.0,83203.0,0.27620803]
[1769848022353,0.2970949,83218.0,83198.0,0.27620803]
[1769848022548,0.2850589,83218.0,83198.0,0.27620803]
[1769848023454,0.2850589,83223.0,83198.0,0.28824703]
[1769848024148,0.10832,83224.0,83202.0,0.27620803]
[1769848024553,0.10832,83224.0,83204.0,0.27620803]
[1769848025454,0.2850589,83231.0,83204.0,0.27620803]
[1769848025656,0.2850589,83229.0,83204.0,0.27620803]
[1769848028958,0.2970929,83229.0,83204.0,0.27620803]
[1769848029256,0.10832,83233.0,83197.0,0.10832]
[1769848029257,0.27397219,83218.0,83197.0,0.10832]
[1769848029958,0.27397219,83218.0,83198.0,0.27187443]
[1769848035256,0.27397219,83218.0,83197.0,0.10832]
[1769848040960,0.28600819,83218.0,83197.0,0.10832]
[1769848041367,0.27397219,83215.0,83197.0,0.10832]
[1769848050377,0.10832,83221.0,83197.0,0.10832]
[1769848050378,0.27397219,83213.0,83197.0,0.10832]
[1769848050677,0.27397219,83205.0,83186.0,0.10832]
[1769848051975,0.27397219,83205.0,83181.0,0.27187443]
[1769848052177,0.27397219,83199.0,83177.0,0.10832]
[1769848052378,0.27397219,83199.0,83178.0,0.27187443]
[1769848052679,0.27397219,83199.0,83180.0,0.20530802]
[1769848052880,0.27397219,83199.0,83180.0,0.47718245]
[1769848054281,0.27397219,83199.0,83181.0,0.27187443]
[1769848057781,0.27397219,83199.0,83180.0,0.20530802]
[1769848058381,0.27397219,83199.0,83180.0,0.50272029]
[1769848058978,0.27397219,83199.0,83180.0,0.20530802]
[1769848059180,0.27397219,83199.0,83180.0,0.48315351]
[1769848059379,0.27397219,83199.0,83181.0,0.27784549]
[1769848060784,0.27397219,83199.0,83180.0,0.20530802]
[1769848060983,0.27457707,83190.0,83171.0,0.10832]
[1769848061289,0.10832,83193.0,83180.0,0.48315351]
[1769848062381,0.10832,83193.0,83180.0,0.20530802]
[1769848062582,0.10832,83193.0,83176.0,0.27784549]
[1769848062782,0.27457707,83192.0,83176.0,0.27784549]
[1769848064693,0.012041,83183.0,83162.0,0.27797468]
[1769848064986,0.28661807,83181.0,83162.0,0.00012919]
[1769848065194,0.27457707,83180.0,83162.0,0.00012919]
[1769848067491,0.27457707,83180.0,83162.0,0.27797468]
[1769848069683,0.10832,83181.0,83171.0,0.27784549]
[1769848070890,0.27457707,83194.0,83171.0,0.27784549]
[1769848071091,0.39497607,83194.0,83178.0,0.48315351]
[1769848071291,0.39497607,83194.0,83178.0,0.27784549]
[1769848071985,0.10836,83194.0,83178.0,0.27784549]
[1769848075700,0.38293707,83194.0,83178.0,0.27784549]
[1769848075994,0.28661707,83193.0,83178.0,0.27784549]
[1769848076586,0.28661707,83193.0,83168.0,0.10836]
[1769848076785,0.27457707,83184.0,83168.0,0.10836]
[1769848077600,0.27457707,83183.0,83168.0,0.10836]
[1769848077985,0.012041,83181.0,83168.0,0.10836]
[1769848078189,0.27457707,83180.0,83168.0,0.10836]
[1769848079590,0.27457707,83180.0,83158.0,0.10836]
[1769848079790,0.27457707,83175.0,83151.0,0.27784549]
[1769848080790,0.27457707,83173.0,83151.0,0.27784549]
[1769848081204,0.27457707,83169.0,83144.0,0.10836]
[1769848081996,0.27457707,83158.0,83136.0,0.10836]
[1769848082298,0.27467534,83157.0,83137.0,0.27784549]
[1769848082700,0.27467534,83157.0,83130.0,0.48315351]
[1769848083601,0.27457707,83155.0,83131.0,0.27784549]
[1769848086705,0.28662207,83155.0,83131.0,0.27784549]
[1769848087304,0.27457707,83155.0,83131.0,0.27784549]
[1769848089609,0.012045,83154.0,83131.0,0.27784549]
[1769848089799,0.29508318,83153.0,83131.0,0.27784549]
[1769848090308,0.29508318,83147.0,83125.0,0.10836]
[1769848090503,0.29508318,83147.0,83126.0,0.2884386]
[1769848090710,0.012047,83143.0,83126.0,0.2884386]
[1769848090901,0.00012919,83142.0,83126.0,0.2884386]
[1769848093321,0.00012919,83142.0,83116.0,0.000151]
[1769848093322,0.29508318,83139.0,83116.0,0.000151]
[1769848093612,0.20530802,83140.0,83116.0,0.000151]
[1769848093613,0.012048,83136.0,83116.0,0.000151]
[1769848093912,0.29508318,83135.0,83116.0,0.000151]
[1769848096416,0.29508318,83128.0,83116.0,0.000151]
[1769848096615,0.20530802,83140.0,83106.0,0.2884386]
[1769848096616,0.30713318,83124.0,83106.0,0.2884386]
[1769848097418,0.30713318,83124.0,83101.0,0.2884386]
[1769848098019,0.78964318,83124.0,83099.0,0.01651143]
[1769848098317,0.012052,83110.0,83099.0,0.01351143]
[1769848098518,0.10853203,83109.0,83099.0,0.01351143]
[1769848098720,0.1084,83115.0,83099.0,0.30195003]
[1769848099821,0.00013439,83114.0,83099.0,0.30195003]
[1769848100031,0.1084,83129.0,83099.0,0.30195003]
[1769848100915,0.29508318,83128.0,83099.0,0.30195003]
[1769848101117,0.1084,83129.0,83099.0,0.30195003]
[1769848101311,0.012049,83128.0,83099.0,0.30195003]
[1769848101516,0.30713218,83128.0,83099.0,0.30195003]
[1769848106528,0.012049,83128.0,83099.0,0.30195003]
[1769848106725,0.30713218,83128.0,83099.0,0.30195003]
[1769848107227,0.29508318,83124.0,83099.0,0.30195003]
[1769848107827,0.1084,83129.0,83099.0,0.30195003]
[1769848107828,0.30713118,83133.0,83106.0,0.012052]
[1769848108128,0.30713218,83130.0,83107.0,0.2884386]
[1769848108326,0.40352318,83129.0,83107.0,0.2884386]
[1769848108525,0.29508318,83128.0,83107.0,0.2884386]
[1769848109729,0.29508318,83128.0,83102.0,0.012053]
[1769848110132,0.29508318,83128.0,83102.0,0.3004916]
[1769848111122,0.29508318,83123.0,83101.0,0.10844]
[1769848111318,0.29508318,83123.0,83099.0,0.01351143]
[1769848112234,0.012051,83114.0,83099.0,0.01351143]
[1769848112438,0.10844,83113.0,83099.0,0.01351143]
[1769848112733,0.29508318,83112.0,83099.0,0.01351143]
[1769848114031,0.10844,83113.0,83100.0,0.2884386]
[1769848114335,0.10844,83113.0,83099.0,0.01351143]
[1769848114520,0.29508318,83112.0,83099.0,0.01351143]
[1769848115019,0.10844,83113.0,83099.0,0.01351143]
[1769848115233,0.10844,83113.0,83099.0,0.30195003]
[1769848118435,0.10844,83113.0,83099.0,0.30295003]
[1769848119025,0.01205,83120.0,83099.0,0.30195003]
[1769848119231,0.10844,83124.0,83101.0,0.28355275]
[1769848121131,0.10844,83124.0,83103.0,0.28355275]
[1769848121727,0.29414299,83123.0,83099.0,0.01351143]
[1769848121935,0.29414299,83121.0,83099.0,0.29706418]
[1769848122236,0.30619399,83116.0,83099.0,0.01351143]
[1769848127146,0.29414299,83116.0,83099.0,0.01351143]
[1769848127648,0.4744,83121.0,83099.0,0.29706418]
[1769848127947,0.48645,83121.0,83099.0,0.29706418]
[1769848128744,0.78059299,83121.0,83099.0,0.29706418]
[1769848129345,0.76854299,83121.0,83099.0,0.29706418]
[1769848129546,0.4744,83121.0,83099.0,0.29706418]
[1769848130141,0.10844,83124.0,83101.0,0.28355275]
[1769848130740,0.10844,83124.0,83104.0,0.28355275]
[1769848132647,0.29414299,83123.0,83104.0,0.28355275]
[1769848133646,0.10844,83124.0,83104.0,0.28355275]
[1769848135046,0.012049,83127.0,83104.0,0.28355275]
[1769848135446,0.30619199,83127.0,83104.0,0.28355275]
[1769848137043,0.012049,83130.0,83104.0,0.28355275]
[1769848137441,0.012049,83130.0,83104.0,0.29560475]
[1769848138341,0.30619199,83130.0,83104.0,0.29560475]
[1769848139049,0.30619199,83130.0,83104.0,0.28355275]
[1769848140538,0.30619199,83130.0,83106.0,0.28355275]
[1769848140752,0.508008,83133.0,83107.0,0.28355275]
[1769848141441,0.80215099,83133.0,83107.0,0.28355275]
[1769848141842,0.80215099,83133.0,83109.0,0.28355275]
[1769848141843,0.29414299,83132.0,83109.0,0.28355275]
[1769848142151,0.005,83129.0,83109.0,0.28355275]
[1769848142653,0.29414299,83132.0,83109.0,0.28355275]
[1769848144645,0.29414299,83132.0,83106.0,0.10844]
[1769848144946,0.49596,83133.0,83106.0,0.10844]
[1769848144947,0.29414299,83130.0,83107.0,0.28355275]
[1769848148051,0.29414299,83130.0,83106.0,0.10844]
[1769848148052,0.10844,83134.0,83116.0,0.29254386]
[1769848148353,0.49868,83143.0,83118.0,0.29254386]
[1769848148554,0.49868,83143.0,83120.0,0.29254386]
[1769848148954,0.77506225,83143.0,83120.0,0.29254386]
[1769848149343,0.49868,83143.0,83120.0,0.30459386]
[1769848150252,0.49868,83143.0,83120.0,0.29254386]
[1769848151257,0.49868,83143.0,83122.0,0.29254386]
[1769848151457,0.27638225,83152.0,83129.0,0.29254386]
[1769848152651,0.27638225,83152.0,83131.0,0.29254386]
[1769848152852,0.012045,83154.0,83132.0,0.29254386]
[1769848153049,0.28842725,83154.0,83132.0,0.29254386]
[1769848153250,0.012045,83154.0,83132.0,0.29254386]
[1769848154659,0.6078,83157.0,83132.0,0.29254386]
[1769848155051,0.88418225,83157.0,83132.0,0.29254386]
[1769848155958,0.88418225,83157.0,83132.0,0.30459186]
[1769848156664,0.27638225,83157.0,83132.0,0.30459186]
[1769848156851,0.27638225,83161.0,83132.0,0.30459186]
[1769848157256,0.512804,83164.0,83136.0,0.29254386]
[1769848157456,0.50076,83164.0,83140.0,0.29254386]
[1769848157654,0.50076,83164.0,83142.0,0.29254386]
[1769848158056,0.10844,83169.0,83142.0,0.29254386]
[1769848158260,0.10844,83169.0,83146.0,0.29254386]
[1769848159460,0.27638225,83168.0,83146.0,0.29254386]
[1769848160056,0.012043,83170.0,83146.0,0.29254386]
[1769848160258,0.27638225,83175.0,83151.0,0.29254386]
[1769848160458,0.27638225,83173.0,83151.0,0.29254386]
[1769848160758,0.38478225,83173.0,83151.0,0.29254386]
[1769848160952,0.27638225,83172.0,83151.0,0.29254386]
[1769848161153,0.1084,83173.0,83153.0,0.29254386]
[1769848162155,0.27638225,83172.0,83153.0,0.29254386]
[1769848162363,0.27638225,83169.0,83152.0,0.1084]
[1769848164066,0.27638225,83169.0,83142.0,0.30459086]
[1769848164561,0.27638225,83169.0,83142.0,0.29254386]
[1769848166566,0.28638225,83169.0,83142.0,0.29254386]
[1769848167067,0.27638225,83159.0,83138.0,0.1084]
[1769848167372,0.27638225,83158.0,83138.0,0.1084]
[1769848168260,0.27638225,83158.0,83132.0,0.012048]
[1769848168856,0.27638225,83158.0,83128.0,0.29254386]
[1769848170166,0.27638225,83158.0,83125.0,0.1084]
[1769848170167,0.1084,83159.0,83141.0,0.29254386]
[1769848171676,0.01,83169.0,83145.0,0.29254386]
[1769848171969,0.01,83169.0,83150.0,0.29254386]
[1769848172467,0.01,83169.0,83150.0,0.30458986]
[1769848175163,0.01,83169.0,83155.0,0.29254386]
[1769848178475,0.01,83169.0,83150.0,0.30613934]
[1769848179967,0.01,83169.0,83155.0,0.28283041]
[1769848180376,0.01,83169.0,83155.0,0.001]
[1769848180768,0.01,83169.0,83150.0,0.29387641]
[1769848181769,0.30167498,83169.0,83150.0,0.29387641]
[1769848182078,0.29167498,83165.0,83139.0,0.28183041]
[1769848184072,0.29167498,83165.0,83138.0,0.1084]
[1769848184375,0.29167498,83162.0,83138.0,0.1084]
[1769848188981,0.29167498,83162.0,83139.0,0.28183041]
[1769848189768,0.29167498,83162.0,83141.0,0.28183041]
[1769848190286,0.50196,83166.0,83141.0,0.28183041]
[1769848190575,0.79363498,83166.0,83141.0,0.28183041]
[1769848190784,0.29167498,83165.0,83141.0,0.28183041]
[1769848193981,0.29167498,83163.0,83141.0,0.28183041]
[1769848194676,0.012044,83164.0,83141.0,0.28183041]
[1769848194984,0.30371898,83164.0,83141.0,0.28183041]
[1769848195285,0.29167498,83160.0,83138.0,0.1084]
[1769848195882,0.29167498,83160.0,83136.0,0.28183041]
[1769848196683,0.29167498,83160.0,83137.0,0.1084]
[1769848197081,0.29167498,83159.0,83137.0,0.1084]
[1769848197383,0.29167498,83157.0,83137.0,0.1084]
[1769848198184,0.29167498,83157.0,83131.0,0.28183041]
[1769848198387,0.29167498,83154.0,83131.0,0.28183041]
[1769848198579,0.29167498,83154.0,83131.0,0.39023041]
[1769848198978,0.29167498,83154.0,83132.0,0.28183041]
[1769848200786,0.29167498,83152.0,83127.0,0.28183041]
[1769848201881,0.29167498,83149.0,83127.0,0.28183041]
[1769848202477,0.29167498,83156.0,83130.0,0.20554665]
[1769848202687,0.1084,83158.0,83140.0,0.21759365]
[1769848202987,0.1084,83158.0,83142.0,0.28183041]
[1769848203588,0.1084,83158.0,83131.0,0.39023041]
[1769848203589,0.29167498,83157.0,83131.0,0.39023041]
[1769848203791,0.29167498,83155.0,83131.0,0.39023041]
[1769848203995,0.29167498,83155.0,83132.0,0.28183041]
[1769848204887,0.012046,83151.0,83132.0,0.28183041]
[1769848205083,0.29167498,83150.0,83132.0,0.28183041]
[1769848207293,0.30605589,83156.0,83132.0,0.28183041]
[1769848212887,0.1084,83158.0,83132.0,0.28183041]
[1769848212888,0.29401089,83152.0,83132.0,0.28183041]
[1769848214992,0.29401089,83150.0,83122.0,0.01205]
[1769848215294,0.1084,83158.0,83123.0,0.2753262]
[1769848215295,0.29401089,83146.0,83123.0,0.2753262]
[1769848216684,0.29401089,83146.0,83120.0,0.31394665]
[1769848216685,0.29401089,83137.0,83120.0,0.1084]
[1769848217091,0.29401089,83135.0,83120.0,0.1084]
[1769848217691,0.29401089,83135.0,83120.0,0.31394665]
[1769848219497,0.489,83150.0,83120.0,0.31394665]
[1769848219498,0.1084,83147.0,83121.0,0.2873762]
[1769848219894,0.120446,83147.0,83121.0,0.2873762]
[1769848220094,0.30605789,83143.0,83120.0,0.1084]
[1769848220292,0.29401089,83137.0,83120.0,0.1084]
[1769848221398,0.29401089,83136.0,83116.0,0.2753262]
[1769848223009,0.29401089,83136.0,83114.0,0.1084]
[1769848223303,0.29401089,83136.0,83114.0,0.3837262]
[1769848223602,0.29401089,83136.0,83115.0,0.2753262]
[1769848228414,0.29401089,83134.0,83115.0,0.2753262]
[1769848228614,0.29401089,83134.0,83114.0,0.1084]
[1769848228615,0.29401089,83132.0,83114.0,0.1084]
[1769848228818,0.29401089,83130.0,83114.0,0.1084]
[1769848231716,0.012049,83131.0,83115.0,0.2753262]
[1769848231917,0.30605889,83135.0,83115.0,0.2753262]
[1769848233519,0.30605889,83135.0,83114.0,0.1084]
[1769848233520,0.29401089,83132.0,83114.0,0.1084]
[1769848233714,0.29401089,83132.0,83114.0,0.2753262]
[1769848236821,0.2879521,83130.0,83114.0,0.2753262]
[1769848237421,0.2879521,83130.0,83111.0,0.10844]
[1769848237813,0.2879521,83130.0,83111.0,0.40540596]
[1769848238223,0.2879521,83128.0,83111.0,0.10844]
[1769848238820,0.2879521,83128.0,83111.0,0.40540596]
[1769848239615,0.2879521,83128.0,83112.0,0.28905841]
[1769848243527,0.28885358,83124.0,83107.0,0.10844]
[1769848245131,0.28885358,83122.0,83099.0,0.01351143]
[1769848245925,0.01205,83119.0,83099.0,0.01351143]
[1769848246130,0.28885358,83118.0,83099.0,0.01351143]
[1769848246929,0.28885358,83118.0,83099.0,0.30256984]
[1769848251732,0.28885358,83134.0,83103.0,0.28905841]
[1769848251935,0.10844,83130.0,83107.0,0.012052]
[1769848252234,0.10844,83130.0,83108.0,0.28905841]
[1769848255827,0.28885358,83127.0,83104.0,0.28905841]
[1769848256533,0.28885358,83118.0,83105.0,0.10844]
[1769848259837,0.28885358,83118.0,83099.0,0.01351143]
[1769848261436,0.28885358,83118.0,83099.0,0.30256984]
[1769848262143,0.28885358,83118.0,83099.0,0.01351143]
[1769848263433,0.28885358,83114.0,83099.0,0.01351143]
[1769848264339,0.28885358,83112.0,83099.0,0.01351143]
[1769848265741,0.10844,83119.0,83100.0,0.28905841]
[1769848266443,0.10844,83119.0,83100.0,0.30111141]
[1769848273339,0.27694025,83121.0,83099.0,0.30894035]
[1769848273544,0.01205,83122.0,83099.0,0.30894035]
[1769848273545,0.27694025,83119.0,83099.0,0.29688735]
[1769848274439,0.27694025,83118.0,83099.0,0.29688735]
[1769848278044,0.27694025,83118.0,83099.0,0.01351143]
[1769848278350,0.27694025,83111.0,83099.0,0.01351143]
[1769848278746,0.27694025,83109.0,83099.0,0.01351143]
[1769848278948,0.27694025,83107.0,83099.0,0.01351143]
[1769848279652,0.27694025,83107.0,83086.0,0.28337592]
[1769848280350,0.27694025,83107.0,83088.0,0.28337592]
[1769848281553,0.28899225,83107.0,83085.0,0.10844]
[1769848282450,0.27694025,83104.0,83085.0,0.10844]
[1769848282652,0.27694025,83099.0,83085.0,0.10844]
[1769848284847,0.27694025,83099.0,83085.0,0.10944]
[1769848286349,0.27694025,83097.0,83074.0,0.02426136]
[1769848286554,0.28899425,83097.0,83075.0,0.28337592]
[1769848288948,0.28899425,83097.0,83076.0,0.012056]
[1769848288949,0.27694025,83096.0,83076.0,0.012056]
[1769848289154,0.27694025,83096.0,83074.0,0.30763728]
[1769848292255,0.27694025,83094.0,83074.0,0.30763728]
[1769848292451,0.27694025,83081.0,83064.0,0.30110352]
[1769848292650,0.5068,83093.0,83061.0,0.28337592]
[1769848292651,0.27694025,83079.0,83061.0,0.28337592]
[1769848292955,0.20589658,83080.0,83064.0,0.012058]
[1769848293159,0.48283683,83080.0,83064.0,0.012058]
[1769848293560,0.27694025,83080.0,83064.0,0.012058]
[1769848293760,0.27694025,83080.0,83064.0,0.29543392]
[1769848294055,0.012052,83105.0,83081.0,0.012056]
[1769848294256,0.012053,83100.0,83073.0,0.012057]
[1769848294459,0.27694025,83096.0,83071.0,0.29543292]
[1769848294656,0.27694025,83094.0,83073.0,0.28337592]
[1769848295556,0.27694025,83090.0,83072.0,0.10463234]
[1769848295860,0.27694025,83076.0,83053.0,0.01206]
[1769848296061,0.28899725,83076.0,83050.0,0.28337592]
[1769848296261,0.28899725,83076.0,83051.0,0.29543592]
[1769848296758,0.00010855,83075.0,83057.0,0.28802073]
[1769848296958,0.00010855,83075.0,83061.0,0.27596173]
[1769848297864,0.00010855,83075.0,83060.0,0.20589658]
[1769848297865,0.28290811,83075.0,83060.0,0.20589658]
[1769848298159,0.28290811,83075.0,83058.0,0.10848]
[1769848298356,0.28279956,83073.0,83058.0,0.10848]
[1769848298556,0.28279956,83073.0,83050.0,0.20589658]
[1769848298557,0.28279956,83073.0,83057.0,0.10848]
[1769848299152,0.012057,83072.0,83057.0,0.10848]
[1769848299360,0.28279956,83071.0,83057.0,0.10848]
[1769848299752,0.29721625,83061.0,83040.0,0.20589658]
[1769848299958,0.29721625,83068.0,83050.0,0.20589658]
[1769848300366,0.10848,83077.0,83058.0,0.20589658]
[1769848300367,0.30927325,83076.0,83058.0,0.20589658]
[1769848300666,0.012057,83072.0,83058.0,0.20589658]
[1769848302165,0.012057,83076.0,83058.0,0.47637482]
[1769848302370,0.10848,83077.0,83059.0,0.27047824]
[1769848303062,0.120536,83077.0,83059.0,0.27047824]
[1769848303365,0.10848,83077.0,83059.0,0.27047824]
[1769848303870,0.29721625,83074.0,83059.0,0.18068972]
[1769848304166,0.29721625,83074.0,83061.0,0.18068972]
[1769848304369,0.29721625,83074.0,83058.0,0.18068972]
[1769848304868,0.29721625,83074.0,83060.0,0.18068972]
[1769848305070,0.29721625,83074.0,83058.0,0.18068972]
[1769848305463,0.29721625,83074.0,83060.0,0.18068972]
[1769848305664,0.29721625,83074.0,83058.0,0.18068972]
[1769848306067,0.29721625,83074.0,83060.0,0.18068972]
[1769848306262,0.29721625,83074.0,83058.0,0.18068972]
[1769848306664,0.29721625,83074.0,83060.0,0.18068972]
[1769848306868,0.29721625,83074.0,83057.0,0.18068972]
[1769848307066,0.29721625,83074.0,83058.0,0.18068972]
[1769848307574,0.29721625,83074.0,83060.0,0.18068972]
[1769848307872,0.29721625,83074.0,83058.0,0.18068972]
[1769848308264,0.29721625,83074.0,83060.0,0.18068972]
[1769848308464,0.29721625,83074.0,83058.0,0.18068972]
[1769848308971,0.29721625,83074.0,83060.0,0.18068972]
[1769848309171,0.29721625,83074.0,83058.0,0.18068972]
[1769848309671,0.29721625,83074.0,83061.0,0.18068972]
[1769848309872,0.29721625,83074.0,83059.0,0.18068972]
[1769848310181,0.30927325,83075.0,83060.0,0.20589658]
[1769848310364,0.30927325,83075.0,83061.0,0.18068972]
[1769848310777,0.30927325,83075.0,83062.0,0.18068972]
[1769848311069,0.30927325,83075.0,83058.0,0.18068972]
[1769848311573,0.30927325,83075.0,83060.0,0.18068972]
[1769848311775,0.30927325,83075.0,83058.0,0.45116796]
[1769848312272,0.30927325,83075.0,83060.0,0.18068972]
[1769848312472,0.30927325,83075.0,83060.0,0.20589658]
[1769848312672,0.30927325,83075.0,83062.0,0.18068972]
[1769848312870,0.29721625,83090.0,83067.0,0.27047824]
[1769848313070,0.30927125,83089.0,83070.0,0.20589658]
[1769848316270,0.30927125,83089.0,83073.0,0.18068972]
[1769848316271,0.29721625,83089.0,83073.0,0.18068972]
[1769848316673,0.29721625,83089.0,83071.0,0.27047824]
[1769848316869,0.29721625,83089.0,83074.0,0.18068972]
[1769848317374,0.012056,83079.0,83067.0,0.10848]
[1769848317675,0.29721625,83078.0,83067.0,0.10848]
[1769848318070,0.29721625,83078.0,83067.0,0.28916972]
[1769848318271,0.29721625,83078.0,83055.0,0.27047824]
[1769848318272,0.29721625,83078.0,83068.0,0.18068972]
[1769848318478,0.29721625,83076.0,83062.0,0.18068972]
[1769848318678,0.29721625,83076.0,83023.0,0.012064]
[1769848318679,0.29721625,83070.0,83049.0,0.27047824]
[1769848318977,0.29721625,83070.0,83050.0,0.10848]
[1769848319177,0.29721625,83070.0,83056.0,0.18068972]
[1769848319563,0.29721625,83064.0,83037.0,0.27047824]
[1769848319765,0.29721625,83064.0,83038.0,0.10848]
[1769848319964,0.29721625,83062.0,83040.0,0.20589658]
[1769848320364,0.29721625,83062.0,83041.0,0.27047824]
[1769848321871,0.30927525,83060.0,83038.0,0.10848]
[1769848322071,0.30927525,83060.0,83028.0,0.27047824]
[1769848322375,0.29721625,83056.0,83029.0,0.10848]
[1769848322679,0.29721625,83054.0,83031.0,0.27047824]
[1769848322878,0.10848,83053.0,83031.0,0.27047824]
[1769848323472,0.10848,83053.0,83029.0,0.012063]
[1769848323473,0.10848,83053.0,83040.0,0.47637482]
[1769848323681,0.567498,83066.0,83041.0,0.27047824]
[1769848323978,0.55544,83066.0,83041.0,0.27047824]
[1769848324178,0.10848,83066.0,83051.0,0.27047824]
[1769848325282,0.10436573,83066.0,83051.0,0.27047824]
[1769848325777,0.30927325,83075.0,83051.0,0.27047824]
[1769848326473,0.005,83089.0,83051.0,0.27147824]
[1769848326673,0.29721625,83115.0,83051.0,0.27147824]
[1769848326674,0.012052,83110.0,83080.0,0.28635967]
[1769848326878,0.005,83115.0,83091.0,0.28635967]
[1769848327170,0.29721625,83124.0,83091.0,0.28635967]
[1769848327477,0.005,83122.0,83095.0,0.28635967]
[1769848327677,0.28234465,83122.0,83095.0,0.28635967]
[1769848327975,0.27734465,83122.0,83091.0,0.012054]
[1769848328274,0.27734465,83122.0,83089.0,0.10852]
[1769848329277,0.28234465,83122.0,83089.0,0.10852]
[1769848329690,0.28234465,83122.0,83089.0,0.39487967]
[1769848329882,0.27734465,83119.0,83089.0,0.10852]
[1769848330082,0.27734465,83117.0,83089.0,0.10852]
[1769848330288,0.27734465,83115.0,83089.0,0.10852]
[1769848330880,0.10848,83116.0,83090.0,0.28635967]
[1769848331385,0.27734465,83115.0,83090.0,0.28635967]
[1769848331975,0.27734465,83115.0,83089.0,0.10852]
[1769848332178,0.27734465,83115.0,83084.0,0.28635967]
[1769848332786,0.27734465,83115.0,83085.0,0.10848]
[1769848335280,0.27734465,83115.0,83086.0,0.28635967]
[1769848336476,0.27734465,83113.0,83085.0,0.10848]
[1769848336682,0.27734465,83111.0,83085.0,0.10848]
[1769848337879,0.27734465,83111.0,83083.0,0.28635967]
[1769848338182,0.27734465,83108.0,83083.0,0.28635967]
[1769848338387,0.27734465,83108.0,83084.0,0.10848]
[1769848338885,0.27734465,83108.0,83084.0,0.39483967]
[1769848339279,0.27734465,83108.0,83086.0,0.09584652]
[1769848339688,0.012052,83109.0,83087.0,0.28635967]
[1769848339982,0.012052,83109.0,83087.0,0.38220619]
[1769848340780,0.012052,83109.0,83088.0,0.28635967]
[1769848340977,0.10848,83116.0,83094.0,0.28635967]
[1769848342288,0.27734465,83115.0,83098.0,0.09584652]
[1769848343288,0.10848,83116.0,83099.0,0.38220619]
[1769848343488,0.10848,83116.0,83102.0,0.28635967]
[1769848343688,0.10848,83116.0,83101.0,0.09584652]
[1769848343689,0.10848,83116.0,83101.0,0.38220619]
[1769848344084,0.10848,83116.0,83104.0,0.09584652]
[1769848345386,0.10848,83116.0,83103.0,0.09584652]
[1769848348994,0.27734465,83115.0,83103.0,0.09192838]
[1769848349195,0.012051,83114.0,83092.0,0.17971222]
[1769848349389,0.27734465,83113.0,83092.0,0.10844]
[1769848350401,0.27734465,83107.0,83086.0,0.17971222]
[1769848350600,0.27734465,83105.0,83082.0,0.10844]
[1769848350800,0.28939765,83104.0,83082.0,0.10844]
[1769848351000,0.28939765,83104.0,83082.0,0.39479967]
[1769848351903,0.27734465,83098.0,83080.0,0.17971222]
[1769848352095,0.27734465,83089.0,83070.0,0.17971222]
[1769848352399,0.27734465,83089.0,83066.0,0.39479967]
[1769848352892,0.27734465,83089.0,83067.0,0.28635967]
[1769848353199,0.27734465,83089.0,83068.0,0.28635967]
[1769848353600,0.28939965,83089.0,83068.0,0.28635967]
[1769848353994,0.27734465,83076.0,83060.0,0.17971222]
[1769848354200,0.38578465,83075.0,83058.0,0.17971222]
[1769848354593,0.38578465,83075.0,83057.0,0.17971222]
[1769848355096,0.38578465,83075.0,83058.0,0.17971222]
[1769848355600,0.27734465,83074.0,83056.0,0.17971222]
[1769848357204,0.27734465,83074.0,83055.0,0.17971222]
[1769848357794,0.28940165,83074.0,83054.0,0.17971222]
[1769848357997,0.28940165,83074.0,83053.0,0.10848]
[1769848357998,0.29062892,83070.0,83053.0,0.10848]
[1769848359000,0.29062892,83068.0,83043.0,0.17971222]
[1769848359203,0.29062892,83068.0,83041.0,0.70148]
[1769848359604,0.29062892,83068.0,83041.0,0.9915081]
[1769848359803,0.29062892,83068.0,83042.0,0.2900281]
[1769848360107,0.012058,83067.0,83042.0,0.2900281]
[1769848361705,0.012057,83072.0,83042.0,0.2900281]
[1769848362112,0.30630941,83072.0,83042.0,0.2900281]
[1769848362410,0.30630941,83072.0,83044.0,0.2900281]
[1769848364714,0.30630941,83072.0,83041.0,0.89325422]
[1769848364715,0.29425241,83061.0,83041.0,0.70148]
[1769848364921,0.29425241,83060.0,83041.0,0.70148]
[1769848365313,0.29425241,83060.0,83041.0,0.10848]
[1769848365514,0.10848,83061.0,83042.0,0.2900281]
[1769848366617,0.005,83088.0,83041.0,0.10848]
[1769848366618,0.012056,83079.0,83048.0,0.2900281]
[1769848366815,0.012056,83079.0,83049.0,0.2900281]
[1769848367420,0.012057,83076.0,83049.0,0.3020881]
[1769848367620,0.012057,83076.0,83049.0,0.2900281]
[1769848368818,0.10848,83081.0,83049.0,0.2900281]
[1769848369021,0.10848,83081.0,83059.0,0.2900281]
[1769848369319,0.10848,83091.0,83063.0,0.2900281]
[1769848369525,0.10848,83091.0,83065.0,0.2900281]
[1769848371825,0.012054,83096.0,83067.0,0.2900281]
[1769848372324,0.012054,83096.0,83069.0,0.2900281]
[1769848372518,0.012054,83097.0,83069.0,0.2900281]
[1769848374520,0.29425241,83106.0,83069.0,0.2900281]
[1769848374721,0.012052,83107.0,83076.0,0.2900281]
[1769848374917,0.012053,83104.0,83078.0,0.2900281]
[1769848375119,0.012053,83104.0,83079.0,0.10848]
[1769848375322,0.012053,83104.0,83080.0,0.2900281]
[1769848375522,0.30630541,83104.0,83080.0,0.2900281]
[1769848375833,0.29425241,83097.0,83079.0,0.10848]
[1769848376427,0.29425241,83095.0,83079.0,0.10848]
[1769848376728,0.29425241,83095.0,83068.0,0.2900281]
[1769848376729,0.29425241,83095.0,83075.0,0.10848]
[1769848376929,0.29425241,83090.0,83062.0,0.2900281]
[1769848377117,0.29425241,83090.0,83063.0,0.503]
[1769848377322,0.29425241,83090.0,83063.0,0.7930281]
[1769848377522,0.29425241,83090.0,83064.0,0.2900281]
[1769848378337,0.30630741,83090.0,83064.0,0.2900281]
[1769848378733,0.30630741,83090.0,83063.0,0.10848]
[1769848378734,0.29425241,83086.0,83063.0,0.10848]
[1769848379533,0.29425241,83085.0,83063.0,0.10848]
[1769848381136,0.29425241,83083.0,83063.0,0.10848]
[1769848381327,0.29425241,83083.0,83048.0,0.2396163]
[1769848381328,0.29425241,83069.0,83043.0,0.2396163]